bitfinex-derivatives/quotes_ETHF0:USTF0_20251117
["timestamp","ask_amount","ask_price","bid_price","bid_amount"]
[1763397148657,3.2078,3093.6,3093.5,0.00485029]
[1763397148949,0.35155029,3094.2,3093.5,3.21265029]
[1763397149248,3.2078,3093.9,3093.5,0.00485029]
[1763397149950,0.35155029,3094.2,3093.5,0.00485029]
[1763397150147,0.35155029,3094.2,3093.5,3.21265029]
[1763397150449,0.00485029,3094.2,3094.0,3.2078]
[1763397150850,0.00485029,3094.2,3094.1,3.2078]
[1763397151153,0.00485029,3094.2,3093.7,3.2078]
[1763397151450,0.00485029,3094.2,3094.1,3.2078]
[1763397151646,0.0029764,3094.3,3094.1,3.2078]
[1763397152246,0.3467,3094.2,3093.5,0.00485029]
[1763397152448,0.3467,3094.2,3093.8,3.2078]
[1763397152641,3.2078,3095.7,3093.8,3.2078]
[1763397152846,3.2078,3095.3,3094.3,3.2078]
[1763397153052,3.2078,3094.9,3094.3,3.2078]
[1763397153239,3.2078,3095.4,3094.3,3.2078]
[1763397153442,3.2078,3094.9,3094.3,3.2078]
[1763397153652,0.00239334,3094.9,3094.3,3.2078]
[1763397154447,3.2078,3094.6,3093.8,3.2078]
[1763397155153,0.3467,3094.2,3093.8,3.2078]
[1763397155543,3.5545,3094.2,3093.8,3.2078]
[1763397155941,3.5545,3094.2,3093.5,0.00485029]
[1763397156146,3.2078,3093.7,3093.5,0.00485029]
[1763397156653,3.5545,3094.2,3093.5,3.21265029]
[1763397156852,3.5545,3094.2,3093.5,0.00485029]
[1763397156853,3.2078,3093.8,3093.5,0.00485029]
[1763397157045,3.2078,3094.1,3093.5,0.00485029]
[1763397158555,0.3467,3094.2,3091.4,1.594]
[1763397158556,3.2078,3093.6,3091.8,3.2078]
[1763397158748,3.2078,3093.1,3092.2,3.2078]
[1763397158944,3.2078,3092.7,3092.2,3.2078]
[1763397159349,0.3467,3093.3,3092.2,3.2078]
[1763397159350,3.2078,3093.1,3092.2,3.2078]
[1763397159651,0.00485029,3093.0,3092.3,0.00485029]
[1763397160451,0.00485029,3093.0,3092.7,3.2078]
[1763397161054,3.2078,3093.6,3092.8,6.0]
[1763397161253,3.2078,3094.0,3093.3,3.2078]
[1763397162252,3.2116255,3094.0,3093.3,3.2078]
[1763397164359,0.0038255,3094.0,3093.7,3.2078]
[1763397164959,0.0038255,3094.0,3093.3,3.2078]
[1763397165349,0.0038255,3094.0,3093.7,3.2078]
[1763397165754,3.2078,3094.8,3093.7,6.4398]
[1763397165953,3.2078,3094.8,3094.2,3.2078]
[1763397166152,0.3467,3094.2,3093.6,3.2078]
[1763397166349,0.3467,3094.2,3093.1,3.2078]
[1763397166350,3.2078,3093.9,3093.1,3.2078]
[1763397166555,0.3467,3093.6,3093.1,3.2078]
[1763397166756,0.35021076,3093.6,3093.1,3.2078]
[1763397166966,0.35021076,3093.6,3092.7,3.2078]
[1763397166967,3.2078,3093.5,3092.7,3.2078]
[1763397167260,3.2078,3093.1,3092.8,0.00485029]
[1763397168965,0.00485029,3093.4,3092.8,0.00485029]
[1763397169155,3.2078,3093.1,3092.8,0.00485029]
[1763397169555,0.00485029,3093.4,3092.8,0.00485029]
[1763397170261,3.2078,3093.1,3092.8,0.00485029]
[1763397171261,3.2078,3093.1,3092.2,0.00269821]
[1763397171562,3.2078,3093.1,3092.6,3.2078]
[1763397171752,3.2078,3093.3,3092.6,3.2078]
[1763397171953,0.00485029,3093.4,3092.6,3.2078]
[1763397172362,3.2078,3093.3,3092.7,0.00485029]
[1763397172567,0.3467,3092.8,3092.7,0.00485029]
[1763397172859,3.5545,3092.8,3091.6,3.2078]
[1763397173058,3.5545,3092.8,3092.0,3.2078]
[1763397173765,3.2078,3092.4,3092.1,0.00485029]
[1763397174065,3.2078,3092.4,3092.1,0.00795189]
[1763397174361,3.2078,3092.4,3091.5,3.2078]
[1763397174549,0.3467,3092.8,3091.5,3.2078]
[1763397174550,3.5545,3092.0,3091.5,3.2078]
[1763397174752,3.2078,3092.4,3091.5,3.2078]
[1763397174956,3.5545,3092.8,3091.9,3.2078]
[1763397175367,3.2078,3092.4,3091.5,3.2078]
[1763397175666,1.076e-05,3093.6,3093.0,3.2078]
[1763397175967,0.34671076,3093.6,3093.5,3.2078]
[1763397176167,0.34671076,3093.6,3092.0,0.00485029]
[1763397176168,0.34671076,3093.6,3092.8,3.2078]
[1763397176462,0.00485029,3093.5,3093.2,3.2078]
[1763397177152,6.00485029,3093.5,3092.7,3.2078]
[1763397177355,3.21265029,3093.5,3092.7,3.2078]
[1763397178269,3.2078,3093.1,3092.0,0.00485029]
[1763397178467,3.2078,3092.7,3092.0,0.00485029]
[1763397180564,0.4271,3092.4,3092.0,0.00485029]
[1763397182565,0.00485029,3093.5,3092.3,3.2078]
[1763397182760,0.00485029,3093.5,3093.4,3.2078]
[1763397183456,1.076e-05,3093.6,3093.4,12.4398]
[1763397183662,1.076e-05,3093.6,3093.4,6.4398]
[1763397183867,1.076e-05,3093.6,3093.5,6.0]
[1763397184063,1.076e-05,3093.6,3093.4,3.2078]
[1763397185765,3.2078,3094.0,3093.4,6.0]
[1763397185971,3.2078,3094.0,3092.3,1.15607537]
[1763397185972,3.2078,3094.8,3093.9,3.2078]
[1763397186666,0.00485029,3094.7,3093.9,3.2078]
[1763397187360,3.6349,3094.2,3093.5,3.2078]
[1763397187561,0.06110903,3094.7,3093.9,3.2078]
[1763397188166,3.2078,3094.2,3093.5,3.21265029]
[1763397188373,3.2078,3093.8,3093.5,0.00485029]
[1763397188571,0.4271,3094.2,3093.5,0.00485029]
[1763397188767,3.27120634,3094.7,3093.9,3.2078]
[1763397189076,3.27120634,3094.7,3093.5,0.00485029]
[1763397189077,0.0071476,3094.7,3094.4,3.2078]
[1763397189379,0.0071476,3094.7,3094.0,3.2078]
[1763397190062,3.2078,3094.2,3093.5,0.00485029]
[1763397190262,3.6349,3094.2,3093.5,0.00485029]
[1763397190866,0.0071476,3094.7,3093.5,3.21680936]
[1763397191080,3.2078,3095.9,3094.4,3.2078]
[1763397191372,3.2078,3096.5,3095.8,3.2078]
[1763397191677,3.6349,3096.8,3095.8,3.2078]
[1763397191871,0.4271,3096.8,3096.2,3.2078]
[1763397192069,3.2078,3097.3,3096.2,3.21030928]
[1763397192370,0.00762378,3096.8,3096.7,3.2078]
[1763397192875,0.09064158,3097.9,3096.7,9.2078]
[1763397193077,0.4271,3097.8,3097.7,3.2078]
[1763397193264,0.4271,3097.8,3096.9,3.2078]
[1763397193470,0.09064158,3097.9,3097.3,3.2078]
[1763397193768,0.09064158,3097.9,3097.7,3.2078]
[1763397194175,3.2078,3099.5,3097.7,6.435]
[1763397194370,3.2078,3099.5,3098.5,3.2078]
[1763397194676,3.6349,3098.7,3098.1,3.2078]
[1763397194881,3.6349,3098.7,3097.3,4.967]
[1763397194884,1.12261421,3100.1,3097.3,4.967]
[1763397194885,3.2078,3103.5,3100.1,3.2078]
[1763397195177,0.4271,3104.1,3101.9,3.2078]
[1763397195481,0.4271,3102.3,3101.9,0.00324122]
[1763397195974,3.02247185,3102.2,3101.9,0.00324122]
[1763397196169,3.02247185,3102.2,3102.1,3.2078]
[1763397196869,0.4271,3102.3,3102.1,0.18532815]
[1763397197272,0.4271,3102.3,3102.2,3.2078]
[1763397197474,0.4271,3102.3,3101.7,3.2078]
[1763397197674,0.4271,3102.3,3101.7,2.75082226]
[1763397198274,3.2078,3102.0,3101.3,3.2078]
[1763397198473,6.0,3102.2,3099.6,40.8]
[1763397198474,3.2078,3101.6,3100.9,3.2078]
[1763397198677,0.43194215,3102.3,3100.9,3.2078]
[1763397198678,3.2078,3102.1,3100.9,3.2078]
[1763397198978,0.43194215,3102.3,3101.5,3.2078]
[1763397199173,3.2078,3102.1,3101.5,3.21128703]
[1763397199370,3.2078,3101.7,3101.5,0.00832918]
[1763397199667,3.2078,3101.7,3101.0,3.2078]
[1763397200272,3.2078,3101.7,3100.7,3.2078]
[1763397200484,3.2078,3101.7,3101.1,3.2078]
[1763397200672,6.1949,3102.3,3101.5,3.2078]
[1763397200973,0.00484215,3101.7,3101.1,0.00902049]
[1763397201176,0.4271,3103.2,3101.6,3.2078]
[1763397201382,0.4271,3103.2,3102.8,3.2078]
[1763397201577,3.2078,3104.0,3102.8,3.2078]
[1763397201785,3.2078,3104.0,3103.2,3.2078]
[1763397202280,0.00483402,3103.8,3103.1,0.00483402]
[1763397202583,3.2078,3103.5,3103.1,0.00483402]
[1763397202975,9.2078,3103.4,3103.1,0.00483402]
[1763397203176,3.2078,3103.4,3102.3,3.2078]
[1763397203378,3.2078,3103.0,3102.3,3.2078]
[1763397203976,0.00483402,3103.8,3102.8,3.2078]
[1763397203977,3.24630193,3103.7,3102.8,3.2078]
[1763397204190,3.24630193,3103.7,3102.9,0.00483402]
[1763397204780,0.03850193,3103.7,3103.3,3.2078]
[1763397204994,3.2078,3103.4,3103.3,0.00231877]
[1763397205282,9.2078,3103.4,3103.3,0.00231877]
[1763397205589,0.7421,3103.1,3102.9,0.00483402]
[1763397205891,0.7421,3102.0,3101.8,3.2078]
[1763397206191,0.7421,3102.0,3101.4,3.2078]
[1763397206482,3.2078,3101.6,3101.4,0.00229219]
[1763397206678,0.7421,3103.1,3101.4,0.00229219]
[1763397206882,3.2078,3102.0,3101.9,0.00483402]
[1763397207686,4.068,3102.0,3101.9,3.402e-05]
[1763397207881,10.068,3102.0,3101.4,0.00229219]
[1763397208080,3.2078,3101.9,3101.4,0.00229219]
[1763397208296,3.2078,3101.7,3101.4,0.00229219]
[1763397208690,3.2078,3101.9,3101.4,0.00229219]
[1763397209596,3.2078,3101.5,3101.2,0.00325256]
[1763397210496,9.2078,3101.5,3100.5,3.2078]
[1763397210797,9.2078,3101.5,3097.8,0.2984]
[1763397210798,3.2078,3100.6,3099.6,3.2078]
[1763397211095,3.2078,3100.2,3099.6,3.2078]
[1763397211501,3.2078,3099.7,3099.0,3.2078]
[1763397211702,3.2078,3099.7,3099.0,3.21057005]
[1763397212199,3.2078,3099.1,3099.0,0.00277005]
[1763397212400,0.8602,3099.0,3098.4,3.2078]
[1763397212593,3.2078,3098.5,3097.8,3.2078]
[1763397212790,0.8602,3099.0,3098.3,3.2078]
[1763397212999,0.00484222,3098.5,3098.3,3.2078]
[1763397213298,0.00484222,3098.5,3098.3,0.00384872]
[1763397214806,0.00484222,3098.5,3096.3,0.24934801]
[1763397214807,6.0,3098.4,3097.5,3.2078]
[1763397214994,3.2078,3097.6,3096.6,3.2078]
[1763397215592,3.2078,3097.6,3095.0,0.2984]
[1763397215593,4.068,3097.0,3095.4,3.2078]
[1763397215792,3.2078,3095.7,3095.4,0.00298692]
[1763397215997,0.00415393,3095.7,3095.4,0.00298692]
[1763397216288,3.2078,3095.5,3095.4,0.00298692]
[1763397218099,3.2078,3095.5,3094.0,0.3269]
[1763397218299,3.2078,3094.8,3094.0,0.3269]
[1763397218506,0.00484222,3094.7,3094.0,0.3269]
[1763397219093,0.00484222,3094.7,3094.0,0.3302168]
[1763397219606,3.2078,3094.4,3094.0,0.0033168]
[1763397219902,0.00484222,3094.7,3094.0,0.8301168]
[1763397220107,3.2078,3094.4,3094.0,0.0033168]
[1763397220406,0.00484222,3094.7,3094.3,3.2078]
[1763397221206,3.2078,3094.4,3094.0,0.0033168]
[1763397222201,3.2078,3094.4,3093.0,3.2078]
[1763397222405,3.2078,3093.6,3093.0,3.2078]
[1763397223203,3.2078,3093.6,3093.0,3.21175653]
[1763397224301,3.2078,3093.1,3093.0,0.00395653]
[1763397224502,3.2078,3093.1,3091.0,1.07976334]
[1763397224503,0.8602,3093.0,3091.8,3.2078]
[1763397224804,3.2078,3092.1,3091.4,3.2078]
[1763397225204,3.2078,3092.1,3091.0,4.0346]
[1763397225394,3.2078,3092.1,3091.0,4.03849463]
[1763397225595,3.2078,3092.1,3091.4,3.2078]
[1763397225800,0.00485115,3092.7,3092.0,0.8268]
[1763397226008,3.2078,3092.6,3092.0,0.8268]
[1763397226202,3.2078,3092.1,3091.0,4.03849463]
[1763397226397,3.2078,3092.0,3091.0,4.03849463]
[1763397226598,0.00485115,3092.7,3092.0,0.8268]
[1763397226805,0.00485115,3092.7,3092.1,3.2078]
[1763397227100,3.2078,3093.0,3092.1,6.4414]
[1763397227304,3.2078,3093.0,3092.1,3.2078]
[1763397227516,0.00364658,3093.1,3092.6,3.2078]
[1763397227702,3.2078,3093.4,3093.0,4.0346]
[1763397228412,3.2078,3093.4,3092.9,0.00485115]
[1763397228602,3.2078,3093.0,3092.9,0.00485115]
[1763397228804,3.2108057,3093.0,3092.9,0.00485115]
[1763397230013,0.0030057,3093.0,3092.9,0.00485115]
[1763397234113,6.0030057,3093.0,3091.2,3.2078]
[1763397234321,3.2078,3091.9,3091.2,3.2078]
[1763397235204,0.00485115,3091.9,3091.2,3.2078]
[1763397235816,3.2078,3091.5,3091.0,0.83069463]
[1763397236615,3.2078,3091.5,3091.0,4.06509463]
[1763397236817,3.2078,3091.5,3091.0,0.83069463]
[1763397237816,0.00485115,3091.9,3091.2,3.2078]
[1763397239214,0.00485115,3091.9,3091.5,0.8243]
[1763397239517,0.00485115,3091.9,3091.2,3.2078]
[1763397239711,3.2078,3091.7,3091.0,0.83069463]
[1763397240320,3.2078,3091.7,3091.0,0.00389463]
[1763397240522,3.2078,3091.7,3091.5,0.8243]
[1763397240821,0.00485115,3091.9,3091.5,0.8243]
[1763397241011,3.2078,3091.8,3091.0,3.21169463]
[1763397241420,0.00485115,3091.9,3091.5,4.0321]
[1763397241726,3.2078,3092.6,3092.4,0.8243]
[1763397242012,3.2078,3092.6,3091.7,4.03522339]
[1763397242221,3.2078,3092.6,3091.8,0.82929617]
[1763397242413,0.0030057,3093.0,3091.7,3.2078]
[1763397242414,3.2078,3092.2,3091.7,3.2078]
[1763397242620,3.2078,3092.2,3091.5,0.8243]
[1763397242824,3.2078,3092.2,3091.3,4.06717099]
[1763397242825,3.2078,3092.2,3091.3,3.2078]
[1763397243014,3.21265115,3092.2,3091.5,0.00485115]
[1763397243215,3.21265115,3092.2,3091.6,0.83133891]
[1763397243421,3.21265115,3092.2,3091.7,0.83133607]
[1763397243611,3.21265115,3092.2,3091.5,0.82915115]
[1763397243926,3.21265115,3092.2,3091.6,0.83129765]
[1763397244111,0.0030057,3093.0,3092.1,3.2078]
[1763397244316,0.0030057,3093.0,3092.9,4.0703364]
[1763397244518,0.0030057,3093.0,3092.9,0.83129765]
[1763397244824,0.0030057,3093.0,3092.9,0.83345159]
[1763397245011,9.2108057,3093.0,3092.5,3.2078]
[1763397245219,3.2078,3092.6,3092.4,0.8625364]
[1763397245419,3.2108057,3093.0,3092.5,0.83545089]
[1763397245711,0.0030057,3093.0,3092.8,0.8625364]
[1763397245912,0.0030057,3093.0,3092.9,0.83545089]
[1763397246113,0.0030057,3093.0,3092.9,1.69798729]
[1763397246318,0.0030057,3093.0,3092.9,0.83545089]
[1763397247213,3.2078,3094.3,3093.0,3.2328]
[1763397247423,3.2078,3094.3,3094.2,0.86630189]
[1763397247623,3.2078,3094.3,3094.2,0.83545089]
[1763397248130,3.2078,3094.3,3094.2,0.8391883]
[1763397248131,3.2105965,3094.3,3094.2,0.8391883]
[1763397248325,0.0027965,3094.3,3094.2,2.57179209]
[1763397248626,0.0027965,3094.3,3094.2,1.99472595]
[1763397248828,0.0027965,3094.3,3094.2,0.8391883]
[1763397249127,6.0027965,3094.3,3094.2,1.70556503]
[1763397249324,0.0027965,3094.3,3094.2,0.8391883]
[1763397250219,0.0027965,3094.3,3094.2,1.70556503]
[1763397250714,0.8408,3094.2,3093.9,0.00485115]
[1763397250917,6.8408,3094.2,3093.6,0.86637673]
[1763397251122,3.2078,3093.7,3093.4,0.86637673]
[1763397251318,3.2078,3093.7,3092.6,5.51793839]
[1763397251319,3.2078,3093.7,3093.3,0.86637673]
[1763397251724,0.8408,3093.3,3092.3,1.15512606]
[1763397251928,3.2078,3092.6,3092.5,0.00485115]
[1763397253027,0.8408,3092.4,3091.5,1.15512606]
[1763397253328,0.8408,3092.4,3090.9,2.31013839]
[1763397253329,3.2078,3091.8,3090.9,3.2078]
[1763397253625,3.2078,3091.8,3090.9,4.36292606]
[1763397253829,3.2078,3092.2,3091.0,1.15512606]
[1763397254130,0.00411864,3092.2,3091.5,3.2078]
[1763397254321,0.00411864,3092.2,3091.0,0.00859075]
[1763397254322,3.2078,3091.8,3091.3,1.15512606]
[1763397254529,3.2078,3091.8,3091.1,4.36292606]
[1763397254829,3.2078,3091.8,3091.2,1.15512606]
[1763397255226,3.2078,3091.8,3091.1,3.2078]
[1763397255427,3.2078,3091.8,3091.0,0.00859075]
[1763397255825,3.2078,3091.8,3091.0,1.16371681]
[1763397256231,3.2078,3091.8,3091.3,3.2078]
[1763397256430,3.2078,3091.8,3091.4,1.15512606]
[1763397256622,3.2078,3091.8,3091.3,1.15512606]
[1763397256819,3.2078,3091.8,3091.0,1.16371681]
[1763397257034,3.2078,3091.8,3091.1,1.15512606]
[1763397257233,3.2078,3091.8,3091.0,0.00859075]
[1763397257426,3.2078,3091.3,3091.0,0.00859075]
[1763397257626,0.8444,3091.5,3091.0,0.00859075]
[1763397257827,3.2078,3091.3,3091.0,0.00859075]
[1763397258443,9.2078,3091.3,3090.4,1.15512606]
[1763397258633,3.2078,3090.5,3089.7,4.36292606]
[1763397259130,3.2078,3090.1,3089.5,1.15512606]
[1763397259331,3.2078,3090.1,3089.5,4.36292606]
[1763397259729,3.21265115,3090.1,3089.5,3.21038038]
[1763397259931,3.21265115,3090.1,3089.5,0.00258038]
[1763397260231,3.2078,3089.7,3089.5,0.00258038]
[1763397260430,3.21092926,3089.7,3089.5,0.00258038]
[1763397260734,4.05532926,3089.7,3089.5,0.00258038]
[1763397261039,0.00312926,3089.7,3089.5,3.21038038]
[1763397261231,3.21265115,3090.1,3089.5,9.21038038]
[1763397261438,3.21265115,3090.1,3089.5,3.21038038]
[1763397261940,3.21265115,3090.1,3089.5,4.36550644]
[1763397262133,0.00485115,3090.1,3089.9,3.2078]
[1763397262435,3.2078,3090.7,3089.9,3.2078]
[1763397262731,0.8444,3091.5,3090.0,0.81435195]
[1763397262939,0.8444,3090.6,3090.1,0.81435195]
[1763397263233,0.8444,3090.6,3089.9,3.2078]
[1763397263234,3.2078,3090.3,3089.9,3.2078]
[1763397263438,0.00389826,3090.3,3090.0,0.81415846]
[1763397263640,0.00389826,3090.3,3090.1,0.81415846]
[1763397263840,3.2078,3091.1,3090.2,0.81415846]
[1763397264135,12.03122715,3093.9,3090.3,0.81415846]
[1763397264136,3.2078,3090.7,3090.3,0.81415846]
[1763397264338,3.2078,3090.7,3090.4,0.81415846]
[1763397264546,12.75348743,3093.3,3090.5,4.02195846]
[1763397264547,3.2078,3091.4,3090.5,4.02195846]
[1763397264725,0.00280046,3091.4,3090.9,3.2078]
[1763397264929,0.00485115,3091.3,3091.0,0.81375255]
[1763397265136,0.00485115,3091.3,3091.1,0.81375255]
[1763397265439,0.00485115,3091.3,3090.9,3.2078]
[1763397265634,3.2078,3091.1,3090.4,3.2078]
[1763397268240,3.2078,3091.1,3090.4,3.9552]
[1763397268743,0.00485115,3091.3,3090.9,3.2078]
[1763397269541,0.79,3091.2,3090.9,3.2078]
[1763397269744,0.79,3091.2,3090.5,3.2078]
[1763397270241,3.2078,3091.0,3090.5,3.2078]
[1763397270633,3.2078,3090.6,3089.8,0.00485115]
[1763397270940,3.2078,3090.2,3089.8,0.00485115]
[1763397271639,3.2078,3090.6,3089.8,0.00485115]
[1763397271944,3.2078,3091.0,3089.8,0.00485115]
[1763397272834,3.2078,3090.6,3089.8,0.00485115]
[1763397273628,0.79,3090.4,3089.8,0.00485115]
[1763397274035,3.2078,3090.6,3089.8,0.00485115]
[1763397275031,3.2078,3090.2,3089.8,0.00485115]
[1763397275636,3.2078,3090.2,3089.5,0.00258038]
[1763397275843,3.9978,3089.6,3088.7,0.0323766]
[1763397276344,3.9978,3088.8,3088.7,0.0323766]
[1763397276541,3.9978,3088.8,3087.8,3.2078]
[1763397276740,3.2078,3088.3,3088.0,0.00485115]
[1763397277540,0.00485115,3088.6,3088.0,0.00485115]
[1763397277940,0.00485115,3088.6,3088.4,3.2078]
[1763397278146,3.2078,3089.2,3088.4,3.2078]
[1763397278347,3.2078,3089.2,3088.8,3.2078]
[1763397278642,3.2078,3089.2,3088.4,3.2078]
[1763397279245,0.00485115,3089.1,3088.4,3.2078]
[1763397280145,3.2078,3088.7,3088.0,3.21265115]
[1763397280341,3.21265115,3089.1,3088.4,3.2078]
[1763397280646,3.2078,3088.8,3088.4,3.2078]
[1763397281146,3.2078,3088.8,3088.0,0.00485115]
[1763397281147,3.2078,3089.0,3088.0,3.21265115]
[1763397282251,3.2078,3089.0,3088.4,3.2078]
[1763397282548,0.00485115,3089.1,3088.9,3.2078]
[1763397282735,3.21265115,3089.1,3088.5,3.2078]
[1763397283144,3.2078,3088.6,3088.0,0.00485115]
[1763397283748,0.79,3088.8,3088.0,0.00485115]
[1763397284049,3.2078,3089.0,3088.0,0.00485115]
[1763397284546,3.2078,3088.6,3088.0,0.00485115]
[1763397285245,3.21265115,3089.1,3088.3,3.2078]
[1763397285446,3.2078,3088.7,3088.0,0.00485115]
[1763397289754,0.00485115,3089.1,3088.0,0.00485115]
[1763397289755,0.00485115,3089.1,3088.3,3.2078]
[1763397289955,3.9978,3088.8,3088.3,3.2078]
[1763397290255,3.2078,3088.7,3088.0,0.00485115]
[1763397291253,3.2078,3088.3,3088.0,0.00485115]
[1763397291449,0.79,3088.0,3087.0,3.2078]
[1763397291651,3.2078,3087.7,3087.0,3.2078]
[1763397292350,3.2078,3087.7,3087.0,3.21586863]
[1763397292750,0.79,3088.0,3087.0,3.21586863]
[1763397292956,0.79,3088.0,3087.4,3.2078]
[1763397293259,3.2078,3088.2,3087.4,3.2078]
[1763397293450,3.2078,3088.2,3087.5,3.2384]
[1763397293656,3.2078,3088.6,3088.0,3.9996]
[1763397294056,3.2078,3088.6,3088.0,3.2078]
[1763397294960,3.2078,3088.6,3088.0,3.9996]
[1763397295262,3.2078,3088.6,3088.0,3.2078]
[1763397297952,3.2078,3088.6,3087.6,3.2078]
[1763397299954,3.2078,3088.6,3087.6,4.36292606]
[1763397300157,0.00485115,3089.1,3088.4,3.2078]
[1763397300366,3.2078,3090.2,3089.0,3.2078]
[1763397300657,2.47990618,3091.2,3088.8,0.6662]
[1763397300658,3.2078,3089.9,3089.3,3.2078]
[1763397300961,3.2078,3089.5,3088.8,3.2078]
[1763397301156,3.2078,3088.9,3088.4,1.15512606]
[1763397301360,3.21085861,3088.9,3088.4,0.00312315]
[1763397302458,4.33249332,3090.7,3088.8,3.6742]
[1763397302654,3.2078,3090.7,3090.0,3.2078]
[1763397302853,3.2078,3090.3,3089.6,3.2078]
[1763397303057,0.6741,3089.6,3088.8,1.15925079]
[1763397303260,3.2078,3090.2,3089.2,3.2078]
[1763397303560,0.6741,3089.6,3089.4,0.00485115]
[1763397303769,3.2078,3089.5,3088.7,3.2078]
[1763397303957,0.6741,3088.8,3088.4,0.00312315]
[1763397304862,3.2078,3088.6,3088.4,0.00312315]
[1763397305059,3.2078,3088.6,3088.4,2.315e-05]
[1763397305263,3.2078,3089.4,3088.4,2.315e-05]
[1763397305464,3.2078,3089.4,3088.7,3.2078]
[1763397305765,3.21265115,3090.0,3089.3,3.2078]
[1763397306060,0.00485115,3090.0,3089.7,3.2078]
[1763397306856,0.00485115,3090.0,3089.7,4.36705079]
[1763397307159,0.00485115,3090.0,3089.7,3.2078]
[1763397307467,0.00485115,3090.0,3089.6,1.15925079]
[1763397307659,0.00485115,3090.0,3089.7,3.2078]
[1763397308559,0.00485115,3090.0,3089.2,3.2078]
[1763397309362,0.00485115,3090.0,3089.6,3.2078]
[1763397309669,0.6741,3088.8,3088.7,2.87506288]
[1763397309862,3.2078,3088.8,3088.3,7.23773918]
[1763397310163,3.7211,3088.8,3088.3,7.23773918]
[1763397310357,3.2078,3088.4,3088.3,4.02993918]
[1763397310563,3.2078,3088.4,3088.3,0.00485115]
[1763397310765,3.2078,3088.4,3088.3,0.00804166]
[1763397310965,9.2078,3088.4,3088.3,0.00804166]
[1763397311267,3.2078,3088.8,3088.3,4.166e-05]
[1763397313469,3.2078,3088.4,3088.3,4.166e-05]
[1763397313758,3.2078,3088.4,3087.5,3.2078]
[1763397313963,3.2078,3088.0,3087.1,4.07879264]
[1763397314162,3.8819,3088.0,3087.1,4.07879264]
[1763397314671,0.00485115,3087.9,3087.1,3.21047369]
[1763397314861,0.00485115,3087.9,3087.2,0.6662]
[1763397315063,1.13792796,3089.0,3087.8,3.2078]
[1763397315271,3.2078,3089.2,3088.2,3.2078]
[1763397315462,3.2078,3089.2,3087.8,0.87099264]
[1763397315463,3.2078,3088.8,3087.8,3.2078]
[1763397316064,0.00485115,3088.6,3088.0,0.00485115]
[1763397316362,3.2078,3088.5,3088.0,0.00485115]
[1763397316664,0.00485115,3088.6,3088.3,3.2078]
[1763397317573,2.84310245,3090.3,3089.6,3.2078]
[1763397317875,8.98091375,3092.4,3090.2,4.36912352]
[1763397317876,2.55538089,3092.1,3090.2,4.36912352]
[1763397318070,3.2078,3090.9,3090.2,3.2078]
[1763397318371,0.6845,3090.6,3089.7,3.2078]
[1763397318579,0.00485115,3090.5,3089.8,0.00485115]
[1763397318781,2.84455008,3090.5,3089.8,0.00485115]
[1763397318969,3.2078,3090.1,3089.7,0.26625985]
[1763397319173,3.2078,3090.1,3089.7,0.00357727]
[1763397319482,0.6845,3089.7,3089.3,3.2078]
[1763397320383,0.6845,3089.7,3089.3,3.21042883]
[1763397320581,0.00485115,3090.5,3089.3,4.08060359]
[1763397320878,0.00485115,3090.5,3090.0,3.2078]
[1763397321377,0.6845,3089.7,3089.3,0.00262883]
[1763397321583,0.6845,3089.7,3088.9,3.2078]
[1763397321772,0.6845,3089.7,3089.3,3.2078]
[1763397322677,0.68800686,3090.6,3089.5,0.87017476]
[1763397322885,0.00350686,3090.6,3090.4,3.2078]
[1763397323085,0.6741,3091.2,3090.4,3.2078]
[1763397323283,0.6741,3091.2,3091.0,3.2078]
[1763397323578,0.6741,3091.2,3090.8,0.00485115]
[1763397323975,0.67770876,3091.2,3090.8,0.00485115]
[1763397324779,0.67770876,3091.2,3091.0,3.2078]
[1763397325588,0.00360876,3091.2,3091.0,3.2078]
[1763397326489,0.00360876,3091.2,3090.6,3.2078]
[1763397326694,0.8527,3090.6,3090.1,3.2078]
[1763397326898,0.00360876,3091.2,3090.1,3.2078]
[1763397327203,0.00360876,3091.2,3090.5,3.2078]
[1763397327785,3.2078,3091.0,3090.5,3.2078]
[1763397328493,4.0605,3090.6,3090.1,3.2078]
[1763397328690,3.2078,3090.2,3089.5,3.2078]
[1763397329002,0.8527,3090.6,3089.5,3.2078]
[1763397330401,3.2078,3090.8,3090.1,3.2078]
[1763397331102,0.00360876,3091.2,3090.6,3.2078]
[1763397332692,0.00360876,3091.2,3091.0,3.2078]
[1763397333093,0.00485115,3091.4,3091.0,3.2078]
[1763397333302,1.08081834,3091.6,3091.1,4.03957986]
[1763397333495,1.08081834,3091.6,3091.5,3.2078]
[1763397334100,0.8527,3091.5,3090.9,3.2078]
[1763397334296,0.8527,3091.5,3091.2,0.00485115]
[1763397335498,1.08350309,3091.6,3091.2,0.00485115]
[1763397335691,1.08350309,3091.6,3091.5,3.2078]
[1763397335901,3.2078,3092.4,3091.5,3.2078]
[1763397336198,4.0605,3092.4,3091.4,3.2078]
[1763397336400,0.8527,3091.5,3091.0,3.2078]
[1763397336701,3.2078,3091.4,3091.0,3.2078]
[1763397336900,3.2078,3091.4,3090.9,0.0033383]
[1763397337095,3.2078,3091.0,3090.2,3.2078]
[1763397337494,0.00485115,3090.9,3090.3,0.00485115]
[1763397338000,3.2078,3090.4,3089.8,3.2078]
[1763397338194,3.2078,3090.4,3088.7,0.87017476]
[1763397338195,3.2078,3089.9,3088.9,3.2078]
[1763397339206,3.2078,3089.9,3089.4,3.2078]
[1763397339597,3.2078,3089.9,3089.0,3.2078]
[1763397341503,3.2078,3089.9,3089.4,3.2078]
[1763397342104,3.2078,3089.9,3089.0,3.2078]
[1763397342497,3.2078,3089.9,3088.9,0.00399791]
[1763397342498,0.80069231,3092.1,3090.3,6.4458]
[1763397342703,3.2078,3093.6,3091.7,3.2078]
[1763397342898,3.2078,3093.6,3093.3,3.2078]
[1763397342899,7.69406439,3093.6,3093.3,3.2078]
[1763397343098,7.69406439,3093.5,3092.3,3.2078]
[1763397343311,3.2078,3092.4,3091.6,0.87017476]
[1763397343612,0.00485115,3092.3,3091.7,0.84986729]